[Event "*** Titled Tuesday Blitz"]
[Site "Chess.com"]
[Date "2020.04.28"]
[Round "6"]
[White "Frogo47"]
[Black "albi1999"]
[Result "0-1"]
[WhiteElo "2484"]
[BlackElo "2648"]
[TimeControl "180+1"]
[EndTime "11:07:20 PDT"]
[Termination "albi1999 won by resignation"]

1. e4 {[%clk 0:03:00.9]} 1... e5 {[%clk 0:02:58.4]} 2. Nf3 {[%clk 0:02:59.7]}
2... Nc6 {[%clk 0:02:58.7]} 3. Bb5 {[%clk 0:02:59.3]} 3... a6 {[%clk 0:02:59.2]}
4. Ba4 {[%clk 0:02:59.6]} 4... d6 {[%clk 0:02:58.1]} 5. c3 {[%clk 0:02:57.5]}
5... Bd7 {[%clk 0:02:57.8]} 6. O-O {[%clk 0:02:57.3]} 6... g6 {[%clk 0:02:58.1]}
7. d4 {[%clk 0:02:57.3]} 7... Bg7 {[%clk 0:02:58.2]} 8. Re1 {[%clk 0:02:57.6]}
8... Nf6 {[%clk 0:02:57.7]} 9. d5 {[%clk 0:02:57.9]} 9... Ne7 {[%clk 0:02:57.8]}
10. Bxd7+ {[%clk 0:02:56.3]} 10... Nxd7 {[%clk 0:02:53.7]} 11. c4 {[%clk
0:02:56.1]} 11... O-O {[%clk 0:02:52.5]} 12. Nc3 {[%clk 0:02:56.5]} 12... h6
{[%clk 0:02:52.6]} 13. a4 {[%clk 0:02:57]} 13... a5 {[%clk 0:02:50.2]} 14. Rb1
{[%clk 0:02:40.3]} 14... f5 {[%clk 0:02:47.4]} 15. b4 {[%clk 0:02:39.5]} 15...
axb4 {[%clk 0:02:46.4]} 16. Rxb4 {[%clk 0:02:39.9]} 16... b6 {[%clk 0:02:46]}
17. Nd2 {[%clk 0:02:37.7]} 17... Kh7 {[%clk 0:02:40.4]} 18. Nb3 {[%clk
0:02:37.3]} 18... fxe4 {[%clk 0:02:26.6]} 19. Nxe4 {[%clk 0:02:36.3]} 19... Nf5
{[%clk 0:02:26.7]} 20. Bd2 {[%clk 0:02:31.9]} 20... Rf7 {[%clk 0:01:59.8]} 21.
Qc2 {[%clk 0:02:26.2]} 21... Qh4 {[%clk 0:01:53.7]} 22. g3 {[%clk 0:02:21.7]}
22... Qh3 {[%clk 0:01:44.8]} 23. Qd3 {[%clk 0:02:19]} 23... Raf8 {[%clk
0:01:42.5]} 24. Qf1 {[%clk 0:02:16.7]} 24... Qxf1+ {[%clk 0:01:31.1]} 25. Rxf1
{[%clk 0:02:16.3]} 25... Ra8 {[%clk 0:01:26.7]} 26. Ra1 {[%clk 0:02:14.7]} 26...
Nd4 {[%clk 0:01:23.3]} 27. Nxd4 {[%clk 0:02:11.2]} 27... exd4 {[%clk 0:01:24.2]}
28. f4 {[%clk 0:02:11.1]} 28... Re7 {[%clk 0:01:22]} 29. Nf2 {[%clk 0:01:58.8]}
29... Re2 {[%clk 0:01:21.6]} 30. Rd1 {[%clk 0:01:58.6]} 30... Nc5 {[%clk
0:01:21.2]} 31. Kf1 {[%clk 0:01:57.9]} 31... Re7 {[%clk 0:01:19.8]} 32. Ra1
{[%clk 0:01:56.9]} 32... d3 {[%clk 0:01:16.5]} 33. Ra2 {[%clk 0:01:51.4]} 33...
Bd4 {[%clk 0:01:16.1]} 34. Be1 {[%clk 0:01:46.4]} 34... Rae8 {[%clk 0:01:13.5]}
35. Rb1 {[%clk 0:01:45]} 35... Re2 {[%clk 0:01:04.1]} 36. Rxe2 {[%clk
0:01:41.8]} 36... dxe2+ {[%clk 0:01:03.5]} 37. Kg2 {[%clk 0:01:39.7]} 37... Nxa4
{[%clk 0:01:03.9]} 38. Rb3 {[%clk 0:01:34.3]} 38... Nc5 {[%clk 0:01:01.4]} 39.
Ra3 {[%clk 0:01:34.5]} 39... Kg7 {[%clk 0:00:56.4]} 40. Kf3 {[%clk 0:01:32.5]}
40... Kf6 {[%clk 0:00:55.6]} 41. g4 {[%clk 0:01:32.3]} 41... g5 {[%clk
0:00:55.3]} 42. fxg5+ {[%clk 0:01:28]} 42... hxg5 {[%clk 0:00:54.6]} 43. h3
{[%clk 0:01:28.3]} 43... Kg6 {[%clk 0:00:54.3]} 44. Kg2 {[%clk 0:01:28.3]} 44...
Re7 {[%clk 0:00:45.1]} 45. Kf3 {[%clk 0:01:27.1]} 45... Kh6 {[%clk 0:00:39]} 46.
Kg2 {[%clk 0:01:26.8]} 46... Ne4 {[%clk 0:00:31]} 47. Nxe4 {[%clk 0:01:22.6]}
47... Rxe4 {[%clk 0:00:31.9]} 48. Kf3 {[%clk 0:01:22.9]} 48... Re7 {[%clk
0:00:29.2]} 49. Ra2 {[%clk 0:01:22.3]} 49... Re3+ {[%clk 0:00:28.8]} 50. Kg2
{[%clk 0:01:21.5]} 50... Kg6 {[%clk 0:00:28.7]} 51. Ra7 {[%clk 0:01:19.7]} 51...
b5 {[%clk 0:00:21]} 52. Rxc7 {[%clk 0:01:18]} 52... b4 {[%clk 0:00:21.5]} 53.
Rb7 {[%clk 0:01:12.7]} 53... b3 {[%clk 0:00:21.8]} 54. Bf2 {[%clk 0:00:58.2]}
54... Rd3 {[%clk 0:00:16.9]} 55. Rb5 {[%clk 0:00:50.1]} 55... b2 {[%clk
0:00:16.2]} 56. h4 {[%clk 0:00:41.4]} 56... Bxf2 {[%clk 0:00:13.7]} 57. Kxf2
{[%clk 0:00:41.3]} 57... Rd1 {[%clk 0:00:14.6]} 58. h5+ {[%clk 0:00:40.9]} 58...
Kh6 {[%clk 0:00:13.7]} 0-1

[Event "*** Titled Tuesday Blitz"]
[Site "Chess.com"]
[Date "2020.04.28"]
[Round "6"]
[White "FROGGY64"]
[Black "Zarikovs1999"]
[Result "1-0"]
[WhiteElo "2451"]
[BlackElo "2278"]
[TimeControl "180+1"]
[EndTime "11:07:20 PDT"]
[Termination "FROGGY64 won on time"]

1. d4 {[%clk 0:03:00.9]} 1... Nf6 {[%clk 0:02:57.9]} 2. Bg5 {[%clk 0:03:00.1]}
2... Ne4 {[%clk 0:02:55.5]} 3. Bf4 {[%clk 0:02:59.6]} 3... c5 {[%clk 0:02:54.7]}
4. f3 {[%clk 0:02:59.3]} 4... Nf6 {[%clk 0:02:54.8]} 5. d5 {[%clk 0:02:59.7]}
5... d6 {[%clk 0:02:54.5]} 6. e4 {[%clk 0:02:59.5]} 6... Qb6 {[%clk 0:02:55]} 7.
b3 {[%clk 0:02:58.4]} 7... Nbd7 {[%clk 0:02:48.1]} 8. c3 {[%clk 0:02:56]} 8...
g6 {[%clk 0:02:47.8]} 9. Nd2 {[%clk 0:02:55.5]} 9... Bg7 {[%clk 0:02:46.8]} 10.
Ne2 {[%clk 0:02:54.3]} 10... a6 {[%clk 0:02:27.9]} 11. Qc2 {[%clk 0:02:54]}
11... Nh5 {[%clk 0:02:22.4]} 12. Be3 {[%clk 0:02:52.7]} 12... Qc7 {[%clk
0:02:22.8]} 13. a4 {[%clk 0:02:51.6]} 13... Rb8 {[%clk 0:02:21.8]} 14. g4 {[%clk
0:02:50.7]} 14... Nhf6 {[%clk 0:02:21.3]} 15. h4 {[%clk 0:02:50.5]} 15... h5
{[%clk 0:02:13.7]} 16. gxh5 {[%clk 0:02:42.6]} 16... Nxh5 {[%clk 0:02:11.3]} 17.
f4 {[%clk 0:02:40.8]} 17... Ndf6 {[%clk 0:02:07.8]} 18. a5 {[%clk 0:02:34.9]}
18... Ng4 {[%clk 0:02:05.7]} 19. Bg1 {[%clk 0:02:34.8]} 19... Bh6 {[%clk
0:01:57.6]} 20. f5 {[%clk 0:02:19.7]} 20... gxf5 {[%clk 0:01:50.3]} 21. exf5
{[%clk 0:02:19.8]} 21... Qd7 {[%clk 0:01:49.9]} 22. Bh3 {[%clk 0:02:05.9]} 22...
Qxf5 {[%clk 0:01:34.5]} 23. Ne4 {[%clk 0:01:38.1]} 23... Qe5 {[%clk 0:01:21]}
24. Rd1 {[%clk 0:01:23]} 24... Bf5 {[%clk 0:01:10.6]} 25. Bg2 {[%clk 0:01:23.1]}
25... Nf4 {[%clk 0:01:06.1]} 26. Nxf4 {[%clk 0:01:19.9]} 26... Bxf4 {[%clk
0:01:07]} 27. Qe2 {[%clk 0:01:05.1]} 27... Bxe4 {[%clk 0:00:47.5]} 28. Qxe4
{[%clk 0:01:04.9]} 28... Qxc3+ {[%clk 0:00:45.5]} 29. Kf1 {[%clk 0:01:05.4]}
29... Qf6 {[%clk 0:00:42.6]} 30. Qf3 {[%clk 0:00:48.1]} 30... Ne5 {[%clk
0:00:33.1]} 31. Qf2 {[%clk 0:00:48.2]} 31... Ng4 {[%clk 0:00:28.5]} 32. Qf3
{[%clk 0:00:48.1]} 32... Ne5 {[%clk 0:00:29.1]} 33. Qf2 {[%clk 0:00:48.3]} 33...
Kd7 {[%clk 0:00:08.6]} 34. Bh3+ {[%clk 0:00:43.6]} 34... Ke8 {[%clk 0:00:02.5]}
35. Bg2 {[%clk 0:00:41.2]} 35... Kd8 {[%clk 0:00:02.9]} 36. Bh2 {[%clk
0:00:39.9]} 36... Bxh2 {[%clk 0:00:02.2]} 37. Qxf6 {[%clk 0:00:39.7]} 37... exf6
{[%clk 0:00:03.1]} 38. Rxh2 {[%clk 0:00:39.8]} 38... Ke7 {[%clk 0:00:04]} 39.
Ke2 {[%clk 0:00:38.9]} 39... Rbg8 {[%clk 0:00:04.3]} 40. h5 {[%clk 0:00:36.6]}
40... Rg4 {[%clk 0:00:03.6]} 41. Rc1 {[%clk 0:00:27.6]} 41... Rh6 {[%clk
0:00:03.4]} 42. Rc3 {[%clk 0:00:27]} 42... Rg5 {[%clk 0:00:03.5]} 43. Bf3 {[%clk
0:00:25.9]} 43... Nxf3 {[%clk 0:00:02.4]} 44. Rxf3 {[%clk 0:00:26]} 44... Rhxh5
{[%clk 0:00:03]} 45. Re3+ {[%clk 0:00:26.1]} 45... Re5 {[%clk 0:00:02.7]} 46.
Rxh5 {[%clk 0:00:26.2]} 1-0

[Event "*** Titled Tuesday Blitz"]
[Site "Chess.com"]
[Date "2020.04.28"]
[Round "6"]
[White "Richarzard69"]
[Black "Vamostodorecto"]
[Result "1-0"]
[WhiteElo "2248"]
[BlackElo "2453"]
[TimeControl "180+1"]
[EndTime "11:07:21 PDT"]
[Termination "Richarzard69 won on time"]

1. Nf3 {[%clk 0:03:00.9]} 1... d5 {[%clk 0:02:58.7]} 2. c4 {[%clk 0:03:01.3]}
2... Nf6 {[%clk 0:02:57.2]} 3. cxd5 {[%clk 0:03:00.8]} 3... Nxd5 {[%clk
0:02:58.1]} 4. e4 {[%clk 0:03:00.6]} 4... Nb6 {[%clk 0:02:58.6]} 5. d4 {[%clk
0:03:00.4]} 5... g6 {[%clk 0:02:59.3]} 6. Nc3 {[%clk 0:02:58.6]} 6... Bg7 {[%clk
0:02:59.7]} 7. Be3 {[%clk 0:02:51.9]} 7... Nc6 {[%clk 0:02:54.3]} 8. d5 {[%clk
0:02:49.6]} 8... Na5 {[%clk 0:02:52.6]} 9. Bd4 {[%clk 0:02:26.8]} 9... O-O
{[%clk 0:02:39.2]} 10. h4 {[%clk 0:02:13.7]} 10... Bg4 {[%clk 0:02:33.9]} 11.
Bxg7 {[%clk 0:01:55.6]} 11... Kxg7 {[%clk 0:02:34.8]} 12. Qd4+ {[%clk
0:01:54.5]} 12... f6 {[%clk 0:02:33.7]} 13. b4 {[%clk 0:01:46.3]} 13... Bxf3
{[%clk 0:02:28.6]} 14. bxa5 {[%clk 0:01:33.6]} 14... Bg4 {[%clk 0:02:20.5]} 15.
axb6 {[%clk 0:01:32.2]} 15... axb6 {[%clk 0:02:21.4]} 16. Be2 {[%clk 0:01:30.6]}
16... Bxe2 {[%clk 0:02:16.5]} 17. Kxe2 {[%clk 0:01:30.2]} 17... e5 {[%clk
0:02:16.9]} 18. Qe3 {[%clk 0:01:26.5]} 18... Ra3 {[%clk 0:02:15.1]} 19. h5
{[%clk 0:01:23.2]} 19... g5 {[%clk 0:01:58.7]} 20. h6+ {[%clk 0:01:23.1]} 20...
Kh8 {[%clk 0:01:56.3]} 21. Qd2 {[%clk 0:01:20.9]} 21... Qa8 {[%clk 0:01:52.6]}
22. Rhc1 {[%clk 0:01:13.1]} 22... Qa6+ {[%clk 0:01:34.5]} 23. Qd3 {[%clk
0:01:12.2]} 23... Qa5 {[%clk 0:01:35.1]} 24. Kf1 {[%clk 0:00:58.8]} 24... Ra8
{[%clk 0:01:23.7]} 25. Kg1 {[%clk 0:00:51.5]} 25... Qc5 {[%clk 0:01:12.4]} 26.
Qf3 {[%clk 0:00:48.8]} 26... Qf8 {[%clk 0:01:09.7]} 27. Qh5 {[%clk 0:00:43]}
27... c6 {[%clk 0:01:02.1]} 28. dxc6 {[%clk 0:00:38.5]} 28... bxc6 {[%clk
0:01:03]} 29. Ne2 {[%clk 0:00:38]} 29... c5 {[%clk 0:00:56.6]} 30. Ng3 {[%clk
0:00:37.9]} 30... Rxa2 {[%clk 0:00:53.6]} 31. Rxa2 {[%clk 0:00:38.8]} 31... Rxa2
{[%clk 0:00:53.6]} 32. Nf5 {[%clk 0:00:38.8]} 32... Ra4 {[%clk 0:00:36.2]} 33.
Qe2 {[%clk 0:00:32]} 33... Rb4 {[%clk 0:00:25.1]} 34. Rd1 {[%clk 0:00:30.4]}
34... c4 {[%clk 0:00:20.5]} 35. Qd2 {[%clk 0:00:28.8]} 35... Kg8 {[%clk
0:00:15.6]} 36. Qd7 {[%clk 0:00:25.5]} 36... c3 {[%clk 0:00:11.8]} 37. Qe6+
{[%clk 0:00:25]} 37... Kh8 {[%clk 0:00:09.4]} 38. Rc1 {[%clk 0:00:13.4]} 38...
Rxe4 {[%clk 0:00:03.3]} 39. Rxc3 {[%clk 0:00:12.5]} 39... Rf4 {[%clk 0:00:02.2]}
40. Rc8 {[%clk 0:00:11.6]} 1-0

[Event "*** Titled Tuesday Blitz"]
[Site "Chess.com"]
[Date "2020.04.28"]
[Round "6"]
[White "CaspiIsrael"]
[Black "XiaoKangZhong"]
[Result "1-0"]
[WhiteElo "2623"]
[BlackElo "2362"]
[TimeControl "180+1"]
[EndTime "11:07:22 PDT"]
[Termination "CaspiIsrael won by checkmate"]

1. e4 {[%clk 0:03:00.9]} 1... c6 {[%clk 0:02:59.5]} 2. d4 {[%clk 0:03:00.5]}
2... d5 {[%clk 0:02:58.7]} 3. e5 {[%clk 0:03:00.5]} 3... c5 {[%clk 0:02:58.6]}
4. dxc5 {[%clk 0:02:59.7]} 4... Nc6 {[%clk 0:02:58.5]} 5. a3 {[%clk 0:02:56]}
5... Nxe5 {[%clk 0:02:57.1]} 6. b4 {[%clk 0:02:56.1]} 6... g6 {[%clk 0:02:57.5]}
7. Bb2 {[%clk 0:02:42.7]} 7... Bg7 {[%clk 0:02:56.8]} 8. Nc3 {[%clk 0:02:42.7]}
8... Nf6 {[%clk 0:02:39.7]} 9. f4 {[%clk 0:02:36]} 9... Neg4 {[%clk 0:02:04.2]}
10. Nxd5 {[%clk 0:02:31.9]} 10... Nxd5 {[%clk 0:02:05.1]} 11. Bxg7 {[%clk
0:02:27.5]} 11... Rg8 {[%clk 0:02:04.8]} 12. c4 {[%clk 0:02:13.2]} 12... Nde3
{[%clk 0:01:50.7]} 13. Qxd8+ {[%clk 0:01:45.8]} 13... Kxd8 {[%clk 0:01:51.6]}
14. Bb2 {[%clk 0:01:38.5]} 14... Nc2+ {[%clk 0:01:50.5]} 15. Ke2 {[%clk
0:01:35]} 15... Nxa1 {[%clk 0:01:51.4]} 16. Bxa1 {[%clk 0:01:35.4]} 16... Be6
{[%clk 0:01:50.8]} 17. Kf3 {[%clk 0:01:33.9]} 17... h5 {[%clk 0:01:39.3]} 18.
Bd3 {[%clk 0:01:31.8]} 18... Kc7 {[%clk 0:01:31]} 19. Ne2 {[%clk 0:01:31.3]}
19... Rad8 {[%clk 0:01:30.2]} 20. Nd4 {[%clk 0:01:31.5]} 20... Bd7 {[%clk
0:01:25.1]} 21. h3 {[%clk 0:01:29.8]} 21... e5 {[%clk 0:01:23.2]} 22. fxe5
{[%clk 0:01:17.6]} 22... Nxe5+ {[%clk 0:01:22.4]} 23. Ke3 {[%clk 0:01:17]} 23...
Nxd3 {[%clk 0:01:22.6]} 24. Kxd3 {[%clk 0:01:17.2]} 24... Rge8 {[%clk
0:01:19.8]} 25. Kc2 {[%clk 0:01:06]} 25... Re4 {[%clk 0:01:08.9]} 26. Rf1 {[%clk
0:01:02.6]} 26... f5 {[%clk 0:01:03.5]} 27. Rf2 {[%clk 0:01:00.5]} 27... Ba4+
{[%clk 0:00:59.8]} 28. Kd2 {[%clk 0:00:57.7]} 28... Rdxd4+ {[%clk 0:00:58.5]}
29. Bxd4 {[%clk 0:00:58.6]} 29... Rxd4+ {[%clk 0:00:59.2]} 30. Kc3 {[%clk
0:00:59]} 30... Re4 {[%clk 0:00:51.1]} 31. b5 {[%clk 0:00:58.5]} 31... a5 {[%clk
0:00:46.9]} 32. Rd2 {[%clk 0:00:52.8]} 32... Re3+ {[%clk 0:00:46.4]} 33. Kd4
{[%clk 0:00:41.9]} 33... Re4+ {[%clk 0:00:37.9]} 34. Kc3 {[%clk 0:00:35.1]}
34... Re1 {[%clk 0:00:33.8]} 35. Rd6 {[%clk 0:00:31]} 35... Rc1+ {[%clk
0:00:33]} 36. Kd4 {[%clk 0:00:23.9]} 36... Rd1+ {[%clk 0:00:30]} 37. Ke5 {[%clk
0:00:24.1]} 37... Rxd6 {[%clk 0:00:30.3]} 38. cxd6+ {[%clk 0:00:25]} 38... Kd7
{[%clk 0:00:31]} 39. b6 {[%clk 0:00:25.3]} 39... Bc6 {[%clk 0:00:29.5]} 40. g3
{[%clk 0:00:25]} 40... h4 {[%clk 0:00:28]} 41. gxh4 {[%clk 0:00:24.8]} 41... Bf3
{[%clk 0:00:28.2]} 42. c5 {[%clk 0:00:24.5]} 42... Bh5 {[%clk 0:00:26.9]} 43.
Kf4 {[%clk 0:00:21.5]} 43... Ke6 {[%clk 0:00:25.4]} 44. c6 {[%clk 0:00:18.8]}
44... Kxd6 {[%clk 0:00:16.4]} 45. cxb7 {[%clk 0:00:18.4]} 45... Kc6 {[%clk
0:00:17.3]} 46. b8=Q {[%clk 0:00:18.5]} 46... Kb5 {[%clk 0:00:18.2]} 47. b7
{[%clk 0:00:17.9]} 47... Ka4 {[%clk 0:00:18.2]} 48. Qd6 {[%clk 0:00:16.5]} 48...
g5+ {[%clk 0:00:19.1]} 49. hxg5 {[%clk 0:00:16.2]} 49... Be8 {[%clk 0:00:16.6]}
50. b8=Q {[%clk 0:00:16]} 50... Bb5 {[%clk 0:00:17.5]} 51. Ke5 {[%clk
0:00:16.1]} 51... Bd7 {[%clk 0:00:16.9]} 52. Qbb4+ {[%clk 0:00:15.1]} 52... axb4
{[%clk 0:00:16.7]} 53. Qxb4# {[%clk 0:00:16]} 1-0

[Event "*** Titled Tuesday Blitz"]
[Site "Chess.com"]
[Date "2020.04.28"]
[Round "6"]
[White "DonPreuss"]
[Black "Chichin_chao"]
[Result "0-1"]
[WhiteElo "2190"]
[BlackElo "2361"]
[TimeControl "180+1"]
[EndTime "11:07:22 PDT"]
[Termination "Chichin_chao won by resignation"]

1. Nc3 {[%clk 0:03:00.9]} 1... e5 {[%clk 0:02:58.5]} 2. e4 {[%clk 0:03:01.1]}
2... c5 {[%clk 0:02:55.8]} 3. f4 {[%clk 0:03:00]} 3... d6 {[%clk 0:02:55.3]} 4.
Nf3 {[%clk 0:03:00]} 4... Nc6 {[%clk 0:02:55.8]} 5. Bc4 {[%clk 0:02:59.4]} 5...
g6 {[%clk 0:02:55.9]} 6. d3 {[%clk 0:02:59]} 6... Bg7 {[%clk 0:02:55.9]} 7. O-O
{[%clk 0:02:58.5]} 7... exf4 {[%clk 0:01:42.8]} 8. Bxf4 {[%clk 0:02:57.3]} 8...
Be6 {[%clk 0:01:42.4]} 9. Bxe6 {[%clk 0:02:43.8]} 9... fxe6 {[%clk 0:01:41.9]}
10. Ng5 {[%clk 0:02:41]} 10... Qd7 {[%clk 0:01:38.2]} 11. Bg3 {[%clk 0:02:35]}
11... Nf6 {[%clk 0:01:31.8]} 12. Nb5 {[%clk 0:02:09.2]} 12... e5 {[%clk
0:01:25.2]} 13. Nc3 {[%clk 0:02:06.2]} 13... h6 {[%clk 0:01:14.8]} 14. Nf3
{[%clk 0:01:38.6]} 14... O-O {[%clk 0:01:14.4]} 15. Nh4 {[%clk 0:01:35.1]} 15...
Kh7 {[%clk 0:01:13.5]} 16. Qe2 {[%clk 0:01:29.9]} 16... Nd4 {[%clk 0:01:10.4]}
17. Qd2 {[%clk 0:01:29.2]} 17... Nh5 {[%clk 0:01:05.1]} 18. Nd5 {[%clk
0:01:22.9]} 18... Rac8 {[%clk 0:00:43.3]} 19. c3 {[%clk 0:01:00.6]} 19... Ne6
{[%clk 0:00:43]} 20. Rxf8 {[%clk 0:00:57]} 20... Rxf8 {[%clk 0:00:41.5]} 21. Rf1
{[%clk 0:00:56.7]} 21... Rxf1+ {[%clk 0:00:38.8]} 22. Kxf1 {[%clk 0:00:56.8]}
22... Nxg3+ {[%clk 0:00:37]} 23. hxg3 {[%clk 0:00:56.4]} 23... Nc7 {[%clk
0:00:19.1]} 24. Nxc7 {[%clk 0:00:54.7]} 24... Qxc7 {[%clk 0:00:20]} 25. Qf2
{[%clk 0:00:53.8]} 25... Qe7 {[%clk 0:00:19.7]} 26. g4 {[%clk 0:00:50.6]} 26...
Bf6 {[%clk 0:00:17.6]} 27. Nf3 {[%clk 0:00:49.8]} 27... Kg7 {[%clk 0:00:16.2]}
28. Ne1 {[%clk 0:00:41.6]} 28... Bh4 {[%clk 0:00:13.6]} 29. g3 {[%clk
0:00:40.3]} 29... Bg5 {[%clk 0:00:13]} 30. Nc2 {[%clk 0:00:40.3]} 30... a6
{[%clk 0:00:10.5]} 31. Ke2 {[%clk 0:00:39.2]} 31... Qe6 {[%clk 0:00:10.6]} 32.
Qf3 {[%clk 0:00:38.9]} 32... Qxa2 {[%clk 0:00:10.3]} 33. Qf1 {[%clk 0:00:17.9]}
33... Qxb2 {[%clk 0:00:09.8]} 34. Qd1 {[%clk 0:00:18.3]} 34... Qxc3 {[%clk
0:00:09.5]} 35. Kf3 {[%clk 0:00:18.5]} 35... b5 {[%clk 0:00:07.5]} 36. Ne3
{[%clk 0:00:15.1]} 36... Bxe3 {[%clk 0:00:07]} 37. Kxe3 {[%clk 0:00:15.6]} 37...
c4 {[%clk 0:00:07.4]} 38. Kf2 {[%clk 0:00:11.9]} 38... Qxd3 {[%clk 0:00:07.5]}
39. Qc1 {[%clk 0:00:07.9]} 39... Qxe4 {[%clk 0:00:06.6]} 40. Qa1 {[%clk
0:00:06.7]} 40... Qd4+ {[%clk 0:00:06.8]} 41. Qxd4 {[%clk 0:00:06.8]} 41... exd4
{[%clk 0:00:07.7]} 42. Kf3 {[%clk 0:00:07.3]} 42... Kf6 {[%clk 0:00:08.1]} 43.
Ke4 {[%clk 0:00:08.2]} 43... Kg5 {[%clk 0:00:08.6]} 0-1

[Event "*** Titled Tuesday Blitz"]
[Site "Chess.com"]
[Date "2020.04.28"]
[Round "6"]
[White "Dr_Thomas_Quilter"]
[Black "MacDaddyMac"]
[Result "1/2-1/2"]
[WhiteElo "2205"]
[BlackElo "2307"]
[TimeControl "180+1"]
[EndTime "11:07:22 PDT"]
[Termination "Game drawn - insufficient material"]

1. d4 {[%clk 0:02:59]} 1... Nf6 {[%clk 0:03:00]} 2. Bf4 {[%clk 0:02:59.1]} 2...
e6 {[%clk 0:03:00]} 3. e3 {[%clk 0:02:57.1]} 3... b6 {[%clk 0:02:59.9]} 4. Bd3
{[%clk 0:02:53.7]} 4... Bb7 {[%clk 0:03:00]} 5. Nf3 {[%clk 0:02:54.1]} 5... Be7
{[%clk 0:02:58.2]} 6. Nbd2 {[%clk 0:02:51.5]} 6... d5 {[%clk 0:02:57.9]} 7. Qe2
{[%clk 0:02:49.5]} 7... Ne4 {[%clk 0:02:55]} 8. Ne5 {[%clk 0:02:43.7]} 8... O-O
{[%clk 0:02:51.2]} 9. g4 {[%clk 0:02:34.8]} 9... Nd7 {[%clk 0:02:33.3]} 10.
O-O-O {[%clk 0:02:24.2]} 10... Nxe5 {[%clk 0:02:24.2]} 11. Bxe5 {[%clk
0:02:21.2]} 11... f6 {[%clk 0:02:17.8]} 12. Bf4 {[%clk 0:02:14.9]} 12... Nxd2
{[%clk 0:02:15.7]} 13. Rxd2 {[%clk 0:02:09.7]} 13... c5 {[%clk 0:02:15.4]} 14.
c3 {[%clk 0:02:06.3]} 14... c4 {[%clk 0:02:06.7]} 15. Bb1 {[%clk 0:02:03.7]}
15... b5 {[%clk 0:02:06.1]} 16. e4 {[%clk 0:01:59.5]} 16... dxe4 {[%clk
0:02:06]} 17. Bxe4 {[%clk 0:01:58.5]} 17... Bxe4 {[%clk 0:02:05.9]} 18. Qxe4
{[%clk 0:01:59.4]} 18... Qd5 {[%clk 0:02:06.2]} 19. Re1 {[%clk 0:01:56]} 19...
Kf7 {[%clk 0:02:05.1]} 20. Rde2 {[%clk 0:01:41.3]} 20... Qxe4 {[%clk 0:01:24.6]}
21. Rxe4 {[%clk 0:01:40.7]} 21... Rfe8 {[%clk 0:01:24.9]} 22. Rxe6 {[%clk
0:01:38.1]} 22... Bf8 {[%clk 0:01:25.3]} 23. d5 {[%clk 0:01:12.4]} 23... Rxe6
{[%clk 0:01:23.2]} 24. Rxe6 {[%clk 0:01:11.8]} 24... Rd8 {[%clk 0:01:22.8]} 25.
Ra6 {[%clk 0:01:07.3]} 25... Bc5 {[%clk 0:01:13.5]} 26. Be3 {[%clk 0:01:05.8]}
26... Bxe3+ {[%clk 0:01:12.5]} 27. fxe3 {[%clk 0:01:05.9]} 27... Rxd5 {[%clk
0:01:13.1]} 28. Rxa7+ {[%clk 0:01:05.2]} 28... Kg6 {[%clk 0:01:13.6]} 29. h4
{[%clk 0:01:01.8]} 29... h5 {[%clk 0:01:13.8]} 30. gxh5+ {[%clk 0:00:55.2]}
30... Rxh5 {[%clk 0:01:13.8]} 31. Rb7 {[%clk 0:00:48]} 31... Rxh4 {[%clk
0:01:03.2]} 32. Rxb5 {[%clk 0:00:47.1]} 32... Rh1+ {[%clk 0:01:03.2]} 33. Kd2
{[%clk 0:00:45.4]} 33... Rh2+ {[%clk 0:01:03.3]} 34. Ke1 {[%clk 0:00:45.7]}
34... f5 {[%clk 0:00:59.4]} 35. a4 {[%clk 0:00:42]} 35... Kg5 {[%clk 0:00:53.8]}
36. e4 {[%clk 0:00:36]} 36... Kg4 {[%clk 0:00:51.6]} 37. Rxf5 {[%clk 0:00:26.4]}
37... Rxb2 {[%clk 0:00:50.4]} 38. a5 {[%clk 0:00:25.8]} 38... Ra2 {[%clk
0:00:43]} 39. Rc5 {[%clk 0:00:20.6]} 39... Kf3 {[%clk 0:00:41.3]} 40. Rxc4
{[%clk 0:00:20]} 40... Rxa5 {[%clk 0:00:39.2]} 41. Rc7 {[%clk 0:00:17.3]} 41...
g5 {[%clk 0:00:36.7]} 42. Rf7+ {[%clk 0:00:12.8]} 42... Ke3 {[%clk 0:00:36.5]}
43. Kf1 {[%clk 0:00:12.6]} 43... Kxe4 {[%clk 0:00:32.7]} 44. Kg2 {[%clk
0:00:10]} 44... Ra3 {[%clk 0:00:27.4]} 45. Kg3 {[%clk 0:00:09.6]} 45... Rxc3+
{[%clk 0:00:26.4]} 46. Kg4 {[%clk 0:00:10]} 46... Rc5 {[%clk 0:00:26.8]} 47. Rf1
{[%clk 0:00:08.5]} 47... Ke3 {[%clk 0:00:25.6]} 48. Rf8 {[%clk 0:00:07.4]} 48...
Ke4 {[%clk 0:00:25.5]} 49. Rf1 {[%clk 0:00:07.2]} 49... Rd5 {[%clk 0:00:25.6]}
50. Re1+ {[%clk 0:00:07.4]} 50... Kd4 {[%clk 0:00:25.4]} 51. Rf1 {[%clk
0:00:07.9]} 51... Kc5 {[%clk 0:00:24.8]} 52. Rf5 {[%clk 0:00:07.5]} 52... Rxf5
{[%clk 0:00:24.2]} 53. Kxf5 {[%clk 0:00:08.2]} 53... Kd5 {[%clk 0:00:24.3]} 54.
Kxg5 {[%clk 0:00:08.4]} 1/2-1/2